bitfinex/quotes_BTCUSD_20250218
["timestamp","ask_amount","ask_price","bid_price","bid_amount"]
[1739873960960,4.867145,95851.0,95850.0,0.00047282]
[1739873961165,4.886007,95851.0,95850.0,0.00047282]
[1739873961450,1.834537,95851.0,95850.0,0.00047282]
[1739873961642,1.348004,95851.0,95850.0,0.00047282]
[1739873962159,1.349004,95851.0,95850.0,0.00047282]
[1739873963328,1.350004,95851.0,95850.0,0.00047282]
[1739873964543,1.258278,95851.0,95850.0,0.00047282]
[1739873965548,1.212998,95851.0,95850.0,0.00047282]
[1739873965777,1.22934822,95851.0,95850.0,0.00047282]
[1739873966583,1.11183022,95851.0,95850.0,0.00047282]
[1739873967858,0.65851622,95851.0,95850.0,0.00047282]
[1739873968058,2.40257822,95851.0,95850.0,0.00047282]
[1739873968423,3.29363322,95851.0,95850.0,0.00047282]
[1739873968561,3.67402622,95851.0,95850.0,0.00047282]
[1739873968760,3.33825322,95851.0,95850.0,0.00047282]
[1739873968994,3.15538422,95851.0,95850.0,0.00047282]
[1739873970252,3.20756117,95851.0,95850.0,0.00047282]
[1739873971679,3.15538422,95851.0,95850.0,0.00047282]
[1739873972841,2.53938,95851.0,95850.0,0.00047282]
[1739873973847,2.695872,95851.0,95850.0,0.00047282]
[1739873975891,2.71222277,95851.0,95850.0,0.00047282]
[1739873978040,3.76600377,95851.0,95850.0,0.00047282]
[1739873978253,5.4796665,95851.0,95850.0,0.00047282]
[1739873978463,5.4655485,95851.0,95850.0,0.00047282]
[1739873978668,5.3367295,95851.0,95850.0,0.00047282]
[1739873978892,5.1909025,95851.0,95850.0,0.00047282]
[1739873979090,5.3409025,95851.0,95850.0,0.00047282]
[1739873980301,5.4200025,95851.0,95850.0,0.00047282]
[1739873980732,5.52250615,95851.0,95850.0,0.00047282]
[1739873981527,5.3178527,95851.0,95850.0,0.00047282]
[1739873981722,5.33420456,95851.0,95850.0,0.00047282]
[1739873982123,5.3228527,95851.0,95850.0,0.00047282]
[1739873982667,5.4793447,95851.0,95850.0,0.00047282]
[1739873982864,5.404415,95851.0,95850.0,0.00047282]
[1739873983634,5.373427,95851.0,95850.0,0.00047282]
[1739873985279,4.6267743,95851.0,95850.0,0.00047282]
[1739873985886,4.4674973,95851.0,95850.0,0.00047282]
[1739873986295,4.48384907,95851.0,95850.0,0.00047282]
[1739873988925,4.47884907,95851.0,95850.0,0.00047282]
[1739873989135,4.47784907,95851.0,95850.0,0.00047282]
[1739873989548,2.51652707,95851.0,95850.0,0.00047282]
[1739873989844,0.32601407,95851.0,95850.0,0.00047282]
[1739873990047,5.88545107,95851.0,95850.0,0.00047282]
[1739873990212,5.32126907,95851.0,95850.0,0.00047282]
[1739873990420,5.32326907,95851.0,95850.0,0.00047282]
[1739873992154,5.35269377,95851.0,95850.0,0.00047282]
[1739873992362,5.32326907,95851.0,95850.0,0.00047282]
[1739873992782,5.3039173,95851.0,95850.0,0.00047282]
[1739873993170,5.3069173,95851.0,95850.0,0.00047282]
[1739873993954,5.3049173,95851.0,95850.0,0.00047282]
[1739873994366,5.3039173,95851.0,95850.0,0.00047282]
[1739873994569,5.3069173,95851.0,95850.0,0.00047282]
[1739873994770,4.7983943,95851.0,95850.0,0.00047282]
[1739873994951,4.3274623,95851.0,95850.0,0.00047282]
[1739873997286,4.34381346,95851.0,95850.0,0.00047282]
[1739873998668,3.92933946,95851.0,95850.0,0.00047282]
[1739873999506,3.29763146,95851.0,95850.0,0.00047282]
[1739873999720,2.83977546,95851.0,95850.0,0.00047282]
[1739873999965,2.42450746,95851.0,95850.0,0.00047282]
[1739874000169,2.42450746,95851.0,95850.0,0.07597282]
[1739874000374,2.42150746,95851.0,95850.0,0.07597282]
[1739874000770,3.12622246,95851.0,95850.0,0.07597282]
[1739874000971,3.98232646,95851.0,95850.0,0.07597282]
[1739874001171,1.86202446,95851.0,95850.0,0.07597282]
[1739874001501,3.51542746,95851.0,95850.0,0.07597282]
[1739874001694,2.47395646,95851.0,95850.0,0.07597282]
[1739874001900,0.34083046,95851.0,95850.0,0.07597282]
[1739874002105,0.17501346,95851.0,95850.0,0.12367282]
[1739874002408,0.1586623,95851.0,95850.0,0.12367282]
[1739874002820,0.0021703,95851.0,95850.0,0.12367282]
[1739874003003,0.1586623,95851.0,95850.0,0.12367282]
[1739874003398,0.0021703,95851.0,95850.0,0.12367282]
[1739874005454,0.0021703,95851.0,95850.0,0.22617647]
[1739874005995,0.0011703,95851.0,95850.0,0.22617647]
[1739874006200,0.0011703,95851.0,95850.0,0.22917647]
[1739874007020,0.0001703,95851.0,95850.0,0.22917647]
[1739874007450,0.0011703,95851.0,95850.0,0.40867047]
[1739874007952,0.0001703,95851.0,95850.0,0.40867047]
[1739874008163,0.0001703,95851.0,95850.0,0.41067047]
[1739874008600,0.0001703,95851.0,95850.0,0.25417647]
[1739874008974,0.0001703,95851.0,95850.0,0.41067047]
[1739874013388,0.0001703,95851.0,95850.0,0.73917047]
[1739874013761,0.0001703,95851.0,95850.0,0.58267647]
[1739874014142,0.0001703,95851.0,95850.0,0.41067047]
[1739874016215,0.0001703,95851.0,95850.0,0.25417647]
[1739874017583,0.0001703,95851.0,95850.0,0.41067047]
[1739874018364,0.0001703,95851.0,95850.0,0.25417647]
[1739874018530,0.0001703,95851.0,95850.0,0.41067047]
[1739874018937,0.0001703,95851.0,95850.0,0.25417647]
[1739874020152,0.0001703,95851.0,95850.0,0.41067047]
[1739874024573,0.0001703,95851.0,95850.0,0.40767047]
[1739874024774,0.0001703,95851.0,95850.0,0.41547319]
[1739874024960,0.0011703,95851.0,95850.0,0.42047319]
[1739874025165,0.0011703,95851.0,95850.0,0.42547319]
[1739874025166,0.0021703,95851.0,95850.0,0.42547319]
[1739874025329,0.0021703,95851.0,95850.0,0.97218218]
[1739874026535,0.08020423,95870.0,95851.0,0.023]
[1739874026765,0.08020423,95870.0,95861.0,0.156476]
[1739874026978,0.08020423,95870.0,95862.0,0.28197765]
[1739874027155,0.08020423,95870.0,95862.0,0.12550365]
[1739874028178,0.08020423,95870.0,95862.0,0.28197765]
[1739874028425,0.08020423,95870.0,95862.0,0.12550365]
[1739874029079,0.08020423,95870.0,95862.0,0.12750365]
[1739874029412,0.08020423,95870.0,95862.0,0.13050365]
[1739874031007,0.08037453,95870.0,95862.0,0.13050365]
[1739874035894,0.23683653,95870.0,95862.0,0.13050365]
[1739874036087,0.08037453,95870.0,95862.0,0.13050365]
[1739874038947,0.08037453,95870.0,95862.0,0.28697765]
[1739874039146,0.08037453,95870.0,95862.0,0.13050365]
[1739874039776,0.08020423,95872.0,95862.0,0.13050365]
[1739874040207,0.15646,95871.0,95862.0,0.13050365]
[1739874040397,0.23666323,95872.0,95862.0,0.13050365]
[1739874040800,0.08020423,95872.0,95862.0,0.12850365]
[1739874041362,0.23666323,95872.0,95862.0,0.20770365]
[1739874041534,0.23666323,95872.0,95862.0,0.20970365]
[1739874041744,0.08020423,95872.0,95862.0,0.20970365]
[1739874041927,0.23666323,95872.0,95862.0,0.20970365]
[1739874042124,0.08020423,95872.0,95862.0,0.20970365]
[1739874042326,0.156461,95871.0,95862.0,0.20970365]
[1739874042530,0.08020423,95872.0,95862.0,0.20970365]
[1739874042926,0.306455,95874.0,95862.0,0.36617665]
[1739874043127,0.598335,95873.0,95862.0,0.36651725]
[1739874043609,0.0001703,95872.0,95863.0,0.0475]
[1739874043805,0.5062713,95872.0,95864.0,0.10250365]
[1739874044008,0.0001703,95872.0,95864.0,0.10250365]
[1739874045527,0.0001703,95872.0,95864.0,0.10650365]
[1739874047719,0.1566293,95872.0,95864.0,0.10650365]
[1739874047998,0.0001703,95872.0,95864.0,0.10650365]
[1739874048200,0.156461,95871.0,95864.0,0.10650365]
[1739874048402,0.1566283,95872.0,95864.0,0.10650365]
[1739874049020,0.1566283,95872.0,95864.0,0.10450365]
[1739874050005,0.0001703,95872.0,95864.0,0.10450365]
[1739874050483,0.0001703,95872.0,95864.0,0.10750365]
[1739874050839,0.0001703,95872.0,95864.0,0.10450365]
[1739874051252,0.0001703,95872.0,95864.0,0.10650365]
[1739874054090,0.0001703,95872.0,95864.0,0.26297465]
[1739874054421,0.0001703,95872.0,95864.0,0.10650365]
[1739874054836,0.0001703,95872.0,95864.0,0.10684425]
[1739874056829,0.0001703,95872.0,95864.0,0.26331525]
[1739874058119,0.0001703,95872.0,95864.0,0.10684425]
[1739874062057,0.0001703,95872.0,95864.0,0.26331425]
[1739874062268,0.0001703,95872.0,95864.0,0.10684425]
[1739874067596,0.0001703,95872.0,95864.0,0.26331425]
[1739874067798,0.0001703,95872.0,95864.0,0.10684425]
[1739874069010,0.0001703,95872.0,95864.0,0.26331425]
[1739874069835,0.0001703,95872.0,95865.0,0.156469]
[1739874070057,0.0001703,95872.0,95866.0,0.10250365]
[1739874071243,0.1566293,95872.0,95866.0,0.10250365]
[1739874071649,0.0001703,95872.0,95866.0,0.10250365]
[1739874071849,0.0001703,95872.0,95866.0,0.10450365]
[1739874072838,0.0001703,95872.0,95866.0,0.10650365]
[1739874078715,0.0001703,95872.0,95871.0,0.15646]
[1739874078956,0.0001703,95872.0,95871.0,0.36076365]
[1739874079166,0.0001703,95872.0,95871.0,0.40816365]
[1739874079971,0.0011703,95872.0,95871.0,0.41416365]
[1739874080212,0.0011703,95872.0,95871.0,0.41616365]
[1739874080345,0.0011703,95872.0,95871.0,0.41416365]
[1739874080810,0.0011703,95872.0,95871.0,0.41916365]
[1739874081998,0.208565,95893.0,95877.0,0.15645]
[1739874082214,1.436216,95893.0,95878.0,0.10250365]
[1739874082370,0.156434,95887.0,95878.0,0.10250365]
[1739874082929,0.156436,95886.0,95878.0,0.10250365]
[1739874083637,0.16177205,95886.0,95878.0,0.10250365]
[1739874084788,0.00533605,95886.0,95878.0,0.10250365]
[1739874084977,0.15644,95884.0,95878.0,0.10250365]
[1739874085179,0.156437,95885.0,95878.0,0.10250365]
[1739874085542,0.00533605,95886.0,95878.0,0.10250365]
[1739874085873,0.566784,95885.0,95878.0,0.10250365]
[1739874086021,0.21391805,95886.0,95878.0,0.10350365]
[1739874086236,0.458454,95885.0,95878.0,0.10350365]
[1739874086542,0.156439,95884.0,95878.0,0.10250365]
[1739874086674,0.16177305,95886.0,95878.0,0.10350365]
[1739874086871,0.00533605,95886.0,95878.0,0.10250365]
[1739874087077,0.156433,95888.0,95878.0,0.10250365]
[1739874087298,0.156434,95887.0,95878.0,0.10250365]
[1739874088106,0.156436,95886.0,95878.0,0.10250365]
[1739874088646,0.156436,95886.0,95878.0,0.10350365]
[1739874089219,0.156436,95886.0,95878.0,0.10250365]
[1739874089413,0.00520787,95888.0,95878.0,0.10250365]
[1739874089732,0.156438,95885.0,95878.0,0.10250365]
[1739874091235,0.0001702,95884.0,95878.0,0.10250365]
[1739874092543,0.0001702,95884.0,95878.0,0.10450365]
[1739874093360,0.0001702,95884.0,95878.0,0.10550365]
[1739874093990,0.156438,95885.0,95878.0,0.10550365]
[1739874094886,0.156435,95887.0,95878.0,0.10350365]
[1739874095082,0.02401671,95894.0,95878.0,0.13431433]
[1739874095353,0.156429,95890.0,95878.0,0.26095065]
[1739874095525,0.14476,95889.0,95878.0,0.10450365]
[1739874095696,0.665733,95889.0,95878.0,0.10450365]
[1739874095896,0.822164,95889.0,95878.0,0.10350365]
[1739874096116,0.46789,95888.0,95878.0,0.10450365]
[1739874096634,0.156428,95891.0,95879.0,0.156446]
[1739874096936,0.156428,95891.0,95880.0,0.10250365]
[1739874096937,0.172404,95890.0,95880.0,0.10250365]
[1739874097298,0.172404,95890.0,95881.0,0.0758]
[1739874097704,0.156424,95893.0,95881.0,0.232242]
[1739874097905,9.653e-05,95890.0,95881.0,0.17830365]
[1739874098109,0.00109653,95890.0,95885.0,0.156436]
[1739874098310,0.00109653,95890.0,95887.0,0.156433]
[1739874098515,9.653e-05,95890.0,95887.0,0.156433]
[1739874098762,0.00109653,95890.0,95884.0,0.208583]
[1739874098957,0.00109653,95890.0,95886.0,0.156434]
[1739874099203,0.00209653,95890.0,95887.0,0.10250365]
[1739874099401,0.00209653,95890.0,95889.0,0.23373]
[1739874099603,0.00109653,95890.0,95889.0,0.33623365]
[1739874100339,0.00209653,95890.0,95889.0,0.33623365]
[1739874100535,0.00109653,95890.0,95889.0,0.33623365]
[1739874100958,0.00109653,95890.0,95889.0,0.33823365]
[1739874101135,9.653e-05,95890.0,95889.0,0.33823365]
[1739874101335,9.653e-05,95890.0,95889.0,0.18480365]
[1739874102557,9.653e-05,95890.0,95889.0,0.23110365]
[1739874103109,9.653e-05,95890.0,95889.0,0.38753365]
[1739874103311,9.653e-05,95890.0,95889.0,0.23110365]
[1739874103731,9.653e-05,95890.0,95889.0,0.41053365]
[1739874103933,9.653e-05,95890.0,95889.0,0.25410365]
[1739874105494,9.653e-05,95890.0,95889.0,0.41053365]
[1739874105655,9.653e-05,95890.0,95889.0,0.25410365]
[1739874108494,9.653e-05,95890.0,95889.0,0.58260365]
[1739874112003,9.653e-05,95890.0,95889.0,0.43600365]
[1739874117874,9.653e-05,95890.0,95889.0,0.43634405]
[1739874121819,9.653e-05,95890.0,95889.0,0.74157405]
[1739874123265,9.653e-05,95890.0,95889.0,0.73857405]
[1739874123468,0.00109653,95890.0,95889.0,0.74557405]
[1739874123873,0.00109653,95890.0,95889.0,0.75345632]
[1739874124071,0.00109653,95890.0,95889.0,0.75145632]
[1739874124325,0.00109653,95890.0,95889.0,0.75745632]
[1739874125099,0.00109653,95890.0,95889.0,0.76525272]
[1739874129261,0.00109653,95890.0,95889.0,1.30405272]
[1739874130997,0.00109653,95890.0,95889.0,1.31667205]
[1739874132750,0.00109653,95890.0,95889.0,1.16024205]
[1739874133390,0.03057984,95890.0,95889.0,1.01144205]
[1739874133612,0.00109653,95890.0,95889.0,1.03444205]
[1739874134269,0.03015405,95890.0,95889.0,1.01394045]
[1739874134445,0.0001702,95894.0,95889.0,1.01394045]
[1739874134647,0.0001702,95894.0,95890.0,0.10250365]
[1739874135960,0.0011702,95894.0,95890.0,0.10750365]
[1739874136175,0.03115323,95894.0,95890.0,0.10750365]
[1739874136371,0.0001702,95894.0,95890.0,0.10750365]
[1739874136733,0.0011702,95894.0,95890.0,0.11350365]
[1739874137130,0.0001702,95894.0,95890.0,0.10750365]
[1739874137689,0.0001702,95894.0,95890.0,0.10450365]
[1739874137988,0.18584558,95894.0,95890.0,0.10450365]
[1739874138228,0.208565,95893.0,95890.0,0.002]
[1739874138428,0.156427,95891.0,95890.0,0.004]
[1739874138605,0.156427,95891.0,95890.0,0.002]
[1739874138855,0.156429,95890.0,95889.0,0.3288404]
[1739874139062,0.156429,95890.0,95889.0,0.43134405]
[1739874140776,0.156429,95890.0,95889.0,0.43234405]
[1739874141823,0.156429,95890.0,95889.0,0.43334405]
[1739874142165,0.03034531,95894.0,95889.0,0.43334405]
[1739874142639,0.03034531,95894.0,95890.0,0.10250365]
[1739874142843,0.03034531,95894.0,95891.0,0.156427]
[1739874143058,0.0001702,95894.0,95893.0,0.179424]
[1739874143271,0.0001702,95894.0,95893.0,0.32812765]
[1739874144105,0.0001702,95894.0,95893.0,0.40332765]
[1739874144322,0.0011702,95894.0,95893.0,0.40332765]
[1739874144522,0.0001702,95894.0,95893.0,0.40332765]
[1739874144919,0.0001702,95894.0,95893.0,0.40832765]
[1739874145674,0.0001702,95894.0,95893.0,0.41122058]
[1739874145875,0.0001702,95894.0,95893.0,0.41822058]
[1739874146267,0.0001702,95894.0,95893.0,0.41122058]
[1739874146475,0.0001702,95894.0,95893.0,0.41822058]
[1739874147013,0.0001702,95894.0,95893.0,1.28552058]
[1739874148129,0.0001702,95894.0,95893.0,1.29252058]
[1739874151089,0.0001702,95894.0,95893.0,1.30515186]
[1739874152533,0.0001702,95894.0,95893.0,1.29710374]
[1739874153412,0.0001702,95894.0,95893.0,1.31762712]
[1739874153960,0.0001702,95894.0,95893.0,1.30515103]
[1739874158279,0.0001702,95894.0,95893.0,1.32515103]
[1739874158626,0.0001702,95894.0,95893.0,1.30515103]
[1739874158828,0.0001702,95894.0,95893.0,1.32515103]
[1739874161199,0.16633864,95939.0,95894.0,0.1057]
[1739874161389,9.653e-05,95925.0,95915.0,0.156387]
[1739874161758,9.653e-05,95925.0,95916.0,0.4550461]
[1739874162206,9.653e-05,95925.0,95924.0,0.156373]
[1739874162359,9.653e-05,95925.0,95924.0,0.25887665]
[1739874162762,0.00209653,95925.0,95924.0,0.28187665]
[1739874164458,9.653e-05,95925.0,95924.0,0.28187665]
[1739874164842,9.653e-05,95925.0,95924.0,0.28287665]
[1739874165046,9.653e-05,95925.0,95924.0,0.28187665]
[1739874165369,9.653e-05,95925.0,95924.0,0.28687665]
[1739874165768,9.653e-05,95925.0,95924.0,0.37157665]
[1739874166583,0.00026673,95925.0,95924.0,0.37157665]
[1739874168119,0.00026673,95925.0,95924.0,0.70007665]
[1739874176323,0.156346,95942.0,95930.0,0.023]
[1739874176525,0.12201494,95940.0,95932.0,0.023]
[1739874176723,0.24168087,95942.0,95933.0,0.10250365]
[1739874176897,1.870822,95941.0,95933.0,0.10250365]
[1739874177635,1.979206,95941.0,95933.0,0.10250365]
[1739874177981,4.441642,95942.0,95933.0,0.10250365]
[1739874178194,3.885586,95941.0,95933.0,0.10250365]
[1739874178607,3.8857561,95941.0,95934.0,0.10250365]
[1739874178809,0.156355,95935.0,95934.0,0.10250365]
[1739874178959,0.156354,95937.0,95934.0,0.10250365]
[1739874179165,0.152548,95936.0,95934.0,0.10250365]
[1739874179365,0.156355,95935.0,95934.0,0.10250365]
[1739874179565,0.208468,95938.0,95934.0,0.10250365]
[1739874179770,0.156355,95935.0,95934.0,0.10250365]
[1739874179929,0.123128,95935.0,95934.0,0.10250365]
[1739874180135,0.156355,95935.0,95934.0,0.10450365]
[1739874180560,0.750274,95935.0,95934.0,0.10250365]
[1739874180729,0.0814,95940.0,95934.0,0.10250365]
[1739874180941,0.208465,95939.0,95934.0,0.10250365]
[1739874181171,0.156355,95935.0,95934.0,0.10250365]
[1739874181805,1.174538,95935.0,95934.0,0.10250365]
[1739874181996,1.174538,95935.0,95924.0,0.3288402]
[1739874181997,1.84308,95935.0,95924.0,0.3288402]
[1739874182150,0.08004743,95934.0,95925.0,0.10250365]
[1739874182562,0.156369,95927.0,95925.0,0.10250365]
[1739874182809,0.156363,95931.0,95925.0,0.10250365]
[1739874183016,0.452439,95930.0,95925.0,0.10250365]
[1739874183186,0.199134,95929.0,95925.0,0.10250365]
[1739874183403,0.156365,95929.0,95925.0,0.10250365]
[1739874183673,0.08004743,95934.0,95925.0,0.10250365]
[1739874183880,0.156365,95930.0,95925.0,0.10450365]
[1739874184081,0.10162,95929.0,95925.0,0.10450365]
[1739874184254,0.156365,95930.0,95925.0,0.10250365]
[1739874184465,0.10162,95929.0,95925.0,0.10250365]
[1739874184625,0.156368,95928.0,95925.0,0.10350365]
[1739874184829,0.28952443,95934.0,95925.0,0.10350365]
[1739874184830,0.08104743,95934.0,95925.0,0.10350365]
[1739874185025,2.529875,95933.0,95925.0,0.10350365]
[1739874185253,2.344068,95932.0,95925.0,0.10350365]
[1739874185452,1.156778,95931.0,95925.0,0.10350365]
[1739874185805,0.156366,95929.0,95925.0,0.10450365]
[1739874186010,0.499063,95928.0,95925.0,0.10350365]
[1739874186216,0.209018,95927.0,95925.0,0.10350365]
[1739874186423,0.454146,95928.0,95925.0,0.10350365]
[1739874186626,0.610513,95928.0,95925.0,0.10250365]
[1739874186816,0.531036,95927.0,95925.0,0.10350365]
[1739874187009,0.208484,95931.0,95925.0,0.10350365]
[1739874187213,0.15637,95926.0,95925.0,0.10350365]
[1739874187387,0.156372,95925.0,95924.0,0.3288402]
[1739874187603,0.156372,95925.0,95924.0,0.43134385]
[1739874187800,0.08004743,95934.0,95924.0,0.43134385]
[1739874188000,0.482696,95933.0,95925.0,0.10250365]
[1739874188182,0.108564,95933.0,95925.0,0.10250365]
[1739874188380,0.156357,95935.0,95925.0,0.10350365]
[1739874188602,0.13813,95934.0,95926.0,0.02404237]
[1739874188779,0.108587,95933.0,95930.0,0.156363]
[1739874188984,0.001,95934.0,95931.0,0.10250365]
[1739874189210,0.108564,95933.0,95931.0,0.10250365]
[1739874189410,0.08004743,95940.0,95931.0,0.10250365]
[1739874189641,0.001,95935.0,95932.0,0.01717037]
[1739874189818,0.001,95935.0,95933.0,0.10250365]
[1739874190018,0.0001701,95941.0,95933.0,0.10250365]
[1739874190203,0.0001701,95941.0,95935.0,0.0814]
[1739874190405,0.0001701,95941.0,95936.0,0.25885665]
[1739874190647,0.0001701,95941.0,95937.0,0.023]
[1739874190856,0.0001701,95941.0,95938.0,0.10250365]
[1739874192664,0.0001701,95941.0,95940.0,0.156347]
[1739874192863,0.0001701,95941.0,95940.0,0.10250365]
[1739874193077,0.7679971,95941.0,95940.0,0.10250365]
[1739874193368,0.77287403,95941.0,95940.0,0.10250365]
[1739874193566,0.77287403,95941.0,95940.0,0.25885065]
[1739874193966,0.77287403,95941.0,95940.0,0.10250365]
[1739874194169,0.00504703,95941.0,95940.0,0.10250365]
[1739874194370,0.00504703,95941.0,95940.0,0.10350365]
[1739874194577,0.00504703,95941.0,95940.0,0.43200365]
[1739874194791,0.0001701,95941.0,95940.0,0.43200365]
[1739874195486,0.00504703,95941.0,95940.0,0.43200365]
[1739874195687,0.0001701,95941.0,95940.0,0.43200365]
[1739874195906,0.00504703,95941.0,95940.0,0.43200365]
[1739874196123,0.0001701,95941.0,95940.0,0.43200365]
[1739874196352,0.0001701,95941.0,95940.0,0.43300365]
[1739874196492,0.00504703,95941.0,95940.0,0.43300365]
[1739874196692,0.0001701,95941.0,95940.0,0.43300365]
[1739874197130,0.0050913,95941.0,95940.0,0.43300365]
[1739874197596,0.0001701,95941.0,95940.0,0.43300365]
[1739874197743,0.0050913,95941.0,95940.0,0.43300365]
[1739874197945,0.0001701,95941.0,95940.0,0.43300365]
[1739874198175,0.0050913,95941.0,95940.0,0.43300365]
[1739874198378,0.0001701,95941.0,95940.0,0.43300365]
[1739874199002,0.00508854,95941.0,95940.0,0.43300365]
[1739874199203,0.0001701,95941.0,95940.0,0.43300365]
[1739874199376,0.00508854,95941.0,95940.0,0.43300365]
[1739874199581,0.0001701,95941.0,95940.0,0.43300365]
[1739874199784,0.00508854,95941.0,95940.0,0.43300365]
[1739874199988,0.0001701,95941.0,95940.0,0.43300365]
[1739874200549,0.00508854,95941.0,95940.0,0.43300365]
[1739874200767,0.0001701,95941.0,95940.0,0.43300365]
[1739874200972,0.00508854,95941.0,95940.0,0.43300365]
[1739874201172,0.0001701,95941.0,95940.0,0.58935065]
[1739874201377,0.0001701,95941.0,95940.0,0.61235065]
[1739874201582,0.0001701,95941.0,95940.0,0.45600365]
[1739874203674,0.00508854,95941.0,95940.0,0.45600365]
[1739874204083,0.00508854,95941.0,95940.0,0.45634385]
[1739874204501,0.156341,95944.0,95941.0,0.023]
[1739874204702,2.779664,95943.0,95942.0,0.10250365]
[1739874204875,0.15634,95945.0,95942.0,0.10250365]
[1739874205107,2.812466,95944.0,95942.0,0.10250365]
[1739874205313,2.778496,95943.0,95942.0,0.10250365]
[1739874205490,2.98383,95946.0,95942.0,0.10250365]
[1739874205691,2.827491,95945.0,95942.0,0.10250365]
[1739874205843,0.156339,95945.0,95942.0,0.10250365]
[1739874206046,2.773591,95944.0,95942.0,0.10250365]
[1739874206613,2.561519,95946.0,95942.0,0.43100365]
[1739874206813,2.559738,95946.0,95942.0,0.43100365]
[1739874207109,2.553438,95946.0,95942.0,0.43100365]
[1739874207354,2.552486,95946.0,95942.0,0.43100365]
[1739874207705,2.30126866,95946.0,95942.0,0.43100365]
[1739874207903,2.301269,95946.0,95942.0,0.43100365]
[1739874208114,2.301269,95945.0,95942.0,0.43100365]
[1739874208606,0.03662224,95947.0,95942.0,0.43100365]
[1739874208607,2.301269,95944.0,95942.0,0.43100365]
[1739874208811,2.289061,95943.0,95942.0,0.43100365]
[1739874211073,1.979751,95943.0,95942.0,0.43100365]
[1739874211844,1.979751,95943.0,95942.0,0.43200365]
[1739874212627,1.955757,95943.0,95942.0,0.43200365]
[1739874213057,1.955757,95943.0,95942.0,0.43400365]
[1739874213252,1.903057,95943.0,95942.0,0.43400365]
[1739874213976,1.892957,95943.0,95942.0,0.43400365]
[1739874214962,1.878057,95943.0,95942.0,0.43400365]
[1739874215176,1.798057,95943.0,95942.0,0.43400365]
[1739874215380,1.715057,95943.0,95942.0,0.43400365]
[1739874216190,1.715057,95943.0,95942.0,0.43434405]
[1739874219919,1.605388,95943.0,95942.0,0.43434405]
[1739874221199,1.572888,95943.0,95942.0,0.43434405]
[1739874223581,1.572888,95943.0,95942.0,0.3318404]
[1739874223582,1.72923,95943.0,95942.0,0.3318404]
[1739874224395,0.156342,95943.0,95942.0,0.3298404]
[1739874224600,3.585822,95943.0,95942.0,0.3298404]
[1739874224808,3.46266,95943.0,95942.0,0.3298404]
[1739874225228,3.71516365,95943.0,95942.0,0.3298404]
[1739874225703,3.71516365,95943.0,95942.0,0.3288404]
[1739874225915,3.61266,95943.0,95942.0,0.3288404]
[1739874226433,3.61466,95943.0,95942.0,0.3288404]
[1739874227225,3.61666,95943.0,95942.0,0.3288404]
[1739874227584,3.5771,95943.0,95942.0,0.3288404]
[1739874227994,3.5791,95943.0,95942.0,0.3288404]
[1739874228614,3.77573959,95943.0,95942.0,0.0003404]
[1739874229016,3.67323594,95943.0,95942.0,0.0003404]
[1739874230894,1.47743794,95943.0,95942.0,0.0003404]
[1739874231092,4.33385294,95943.0,95942.0,0.0003404]
[1739874231296,5.61452094,95943.0,95942.0,0.0003404]
[1739874231502,5.84163294,95943.0,95942.0,0.0003404]
[1739874231701,5.84452259,95943.0,95942.0,0.0003404]
[1739874231899,5.74599159,95943.0,95942.0,0.0003404]
[1739874232316,5.64348794,95943.0,95942.0,0.0003404]
[1739874233539,5.56558194,95943.0,95942.0,0.0003404]
[1739874233794,5.18983394,95943.0,95942.0,0.0003404]
[1739874236456,5.11590094,95943.0,95942.0,0.0003404]
[1739874236656,5.11390094,95943.0,95942.0,0.0003404]
[1739874237083,5.11590094,95943.0,95942.0,0.0003404]
[1739874237293,4.52727694,95943.0,95942.0,0.0003404]
[1739874237443,3.965413,95943.0,95942.0,0.0003404]
[1739874237667,3.963413,95943.0,95942.0,0.0003404]
[1739874238110,3.961413,95943.0,95942.0,0.0003404]
[1739874238471,3.938985,95943.0,95942.0,0.0003404]
[1739874239167,3.834887,95943.0,95942.0,0.0003404]
[1739874239377,3.830887,95943.0,95942.0,0.0003404]
[1739874239594,3.833887,95943.0,95942.0,0.0003404]
[1739874239799,3.831887,95943.0,95942.0,0.0003404]
[1739874239997,3.832887,95943.0,95942.0,0.0003404]
[1739874240343,3.8360573,95943.0,95942.0,0.0003404]
[1739874240561,3.84839366,95943.0,95942.0,0.0003404]
[1739874240689,3.84539366,95943.0,95942.0,0.0003404]
[1739874240895,3.85139366,95943.0,95942.0,0.0003404]
[1739874242896,0.57081666,95943.0,95942.0,0.0003404]
[1739874243103,0.29128866,95943.0,95942.0,0.0003404]
[1739874243243,3.45347866,95943.0,95942.0,0.0003404]
[1739874243438,3.43972166,95943.0,95942.0,0.0003404]
[1739874243650,3.43372166,95943.0,95942.0,0.0003404]
[1739874243864,3.39487766,95943.0,95942.0,0.0003404]
[1739874244068,3.39687766,95943.0,95942.0,0.0003404]
[1739874244312,3.31595366,95943.0,95942.0,0.0003404]
[1739874247197,3.2996173,95943.0,95942.0,0.0003404]
[1739874247800,3.2234573,95943.0,95942.0,0.0003404]
[1739874249631,2.9546753,95943.0,95942.0,0.0003404]
[1739874249836,3.0740113,95943.0,95942.0,0.0003404]
[1739874250059,3.07034913,95943.0,95942.0,0.0003404]
[1739874250932,2.90534213,95943.0,95942.0,0.0003404]
[1739874251701,3.05534213,95943.0,95942.0,0.0003404]
[1739874252110,3.05538617,95943.0,95942.0,0.0003404]
[1739874252561,3.14134783,95943.0,95942.0,0.0003404]
[1739874252769,2.81781549,95943.0,95942.0,0.0003404]
[1739874252972,2.97415749,95943.0,95942.0,0.0003404]
[1739874255756,2.99049386,95943.0,95942.0,0.0003404]
[1739874263334,3.02045962,95943.0,95942.0,0.0003404]
[1739874263679,3.02045962,95943.0,95940.0,0.0003402]
[1739874263680,0.388746,95941.0,95940.0,0.0003402]
[1739874263886,0.388746,95941.0,95924.0,0.0003402]
[1739874263887,0.15637,95926.0,95924.0,0.0003402]
[1739874264127,5.942356,95926.0,95924.0,0.0003402]
[1739874264336,4.937054,95926.0,95924.0,0.0003402]
[1739874264573,5.087054,95926.0,95924.0,0.0003402]
[1739874265888,5.089054,95926.0,95924.0,0.0003402]
[1739874266520,4.63326831,95926.0,95924.0,0.0003402]
[1739874266897,4.63626831,95926.0,95924.0,0.0003402]
[1739874267101,4.62043131,95926.0,95924.0,0.0003402]
[1739874267515,4.10693731,95926.0,95924.0,0.0003402]
[1739874267753,3.32784931,95926.0,95924.0,0.0003402]
[1739874267921,3.05973231,95926.0,95924.0,0.0003402]
[1739874268743,3.05473231,95926.0,95924.0,0.0003402]
[1739874268941,3.05673231,95926.0,95924.0,0.0003402]
[1739874269360,3.05473231,95926.0,95924.0,0.0003402]
[1739874269510,3.05673231,95926.0,95924.0,0.0003402]
[1739874269717,3.05373231,95926.0,95924.0,0.0003402]
[1739874270118,3.05673231,95926.0,95924.0,0.0003402]
[1739874270542,3.05373231,95926.0,95924.0,0.0003402]